Cogmind - Beta 15 @@@ ROGUE MODE // 2025.07.07 @ 22:57:52 Player: Skysub Result: Destroyed by 37-O3P(R) with Subdweller Laser Performance ------------- Evolutions (0) 0 Regions Visited (2) 400 Robots Destroyed (41) 205 Value Destroyed (1177) 1177 Prototype IDs (11) 220 Alien Tech Used (0) 0 Bonus (0) 0 TOTAL SCORE: 2002 Bonus ------- None Cogmind --------- Core Integrity 0/250 Matter 21/300 Energy 197/200 System Corruption 0% Temperature Cool (6) Movement Treading (260) Ox1 Location -10/Subcaves Parts ------- > --- POWER (1) -------- Subdweller Power Source > --- PROPULSION (2) --- Spiked Treads Armored Wheel > --- UTILITY (2) ------ Large Storage Unit Makeshift Light Armor Plating > --- WEAPON (2) ------- Battle Cannon Subdweller Shrapnel Launcher > --- INVENTORY (15) --- Subdweller Power Source Subdweller Power Source Subdweller Power Source Subdweller Monowheel Subdweller Monowheel Flightbrick Structural Scanner Subdweller Optics Subdweller Machine Gun Peak State ------------ > --- POWER ------------ Subdweller Power Source > --- PROPULSION ------- Spiked Treads Armored Wheel > --- UTILITY ---------- Large Storage Unit Makeshift Light Armor Plating > --- WEAPON ----------- Battle Cannon Subdweller Shrapnel Launcher > --- INVENTORY -------- Subdweller Power Source Subdweller Power Source Subdweller Power Source Subdweller Monowheel Subdweller Monowheel Flightbrick Structural Scanner Subdweller Optics Subdweller Machine Gun [Rating: 20] Favorites ----------- Power Subdweller Power Source Engine Subdweller Power Source Propulsion Light Treads Treads Light Treads Wheel Armored Wheel Utility Large Storage Unit Device Structural Scanner Storage Large Storage Unit Protection Hardened Light Armor Plating Weapon Grenade Launcher Energy Gun Medium Laser Ballistic Gun Assault Rifle Ballistic Cannon Battle Cannon Launcher Grenade Launcher Special Weapon Mining Laser Build | -11 -10 -10 ------- Run | Yrd Mat Sub Slots Evolved . | . . . Power . | . . . Propulsion . | . . . Utility . | . . . Weapon . | . . . Parts Attached 30 | 6 9 15 Power 3 | 1 1 1 Engine 3 | 1 1 1 Core . | . . . Reactor . | . . . Propulsion 7 | 2 2 3 Treads 4 | 2 1 1 Leg . | . . . Wheel 3 | . 1 2 Hover . | . . . Flight . | . . . Utility 7 | 1 3 3 Device 1 | . 1 . Storage 2 | 1 1 . Processor . | . . . Hackware . | . . . Protection 4 | . 1 3 Artifact . | . . . Weapon 13 | 2 3 8 Energy Gun 1 | 1 . . Energy Cannon . | . . . Ballistic Gun 5 | 1 1 3 Ballistic Cannon 1 | . . 1 Launcher 5 | . 2 3 Special Weapon 1 | . . 1 Impact Weapon . | . . . Slashing Weapon . | . . . Piercing Weapon . | . . . Special Melee Weapon . | . . . Unidentified Prototypes . | . . . Parts Lost 16 | . 6 10 Power 2 | . 2 . Propulsion 5 | . 2 3 Utility 2 | . . 2 Weapon 7 | . 2 5 Highest Loss Streak 2 | . 2 2 To Critical Strikes . | . . . Average Backups 8 | 1 6 12 Power 1 | . . 2 Propulsion 2 | . 1 2 Utility 2 | . . 3 Weapon 3 | . 3 3 Tool/Special . | . . . Unused Backups 10 | . . 10 Power 3 | . . 3 Propulsion 5 | . . 5 Utility 1 | . . 1 Weapon 1 | . . 1 Tool/Special . | . . . Average Slot Usage (%) 85 | . 84 86 Engine 8 | . 6 11 Treads 13 | . 24 1 Wheel 9 | . 1 18 Device 7 | . 9 4 Storage 14 | . 14 14 Protection 4 | . . 9 Energy Gun 1 | . 1 1 Ballistic Gun 14 | . 17 10 Launcher 8 | . 6 12 Peak Build Rating 20 | 6 9 20 Average Rating 9 | 5 6 13 On Entrance 4 | . 6 8 Naked Turns . | . . . Heaviest Build 42 | 12 30 42 Greatest Support 40 | 40 40 24 Greatest Overweight (x) 3 | 2 2 3 Average Overweight (x) 1 | . . 1 Largest Inventory Capacity 15 | 8 15 15 Average Capacity 13 | 7 13 15 Most Carried 15 | 3 14 15 Average Carried 9 | 2 6 13 Final Capacity 15 | 8 15 15 Final Carried 14 | 3 14 12 Class Distribution -------------------- 100% | Mutant Dominant Class ---------------- Mutant | -10/Materials Mutant | -10/Subcaves Resources | -11 -10 -10 ----------- Run | Yrd Mat Sub Matter Collected 864 | 256 169 439 Remotely . | . . . Salvage Created 1134 | 148 622 364 Parts 77 | 10 41 26 Haulers Intercepted 1 | . 1 . Recyclers Shooed 3 | 1 2 . Parts Field Recycled . | . . . Retrieved Matter . | . . . Parts Self-Destructed 7 | . . 7 Prevented . | . . . Kills | -11 -10 -10 ------- Run | Yrd Mat Sub Combat Hostiles Destroyed 31 | . 20 11 Guns 11 | . 7 4 AOE 20 | . 13 7 Classes Destroyed 9 | 2 5 2 Builder 2 | . 2 . Tunneler 4 | 3 1 . Hauler 1 | . 1 . Recycler 2 | 1 1 . Watcher 1 | . 1 . Swarmer 3 | . 3 . Grunt 17 | . 17 . Sentry 1 | . . 1 Subdweller 10 | . . 10 Best Kill Streak 7 | 4 7 4 Combat Bots Only 6 | . 6 4 Max Kills in Single Turn 3 | 1 3 2 Gunslinging . | . . . Exploded 3 | . 3 2 Melee . | . . . Uniques/NPCs Destroyed . | . . . Combat | -11 -10 -10 -------- Run | Yrd Mat Sub Hostile Shots Fired 155 | . 77 78 Missed 36 | . 17 19 Hits 119 | . 60 59 Projectile 119 | . 60 59 Critical Strikes 6 | . 3 3 Damage Taken 2235 | . 929 1306 Core 259 | . 140 119 Absorbed by Shields . | . . . Core Remaining (%) 100 | 100 . . Volleys Fired 147 | 9 60 78 Largest 2 | 2 2 2 Hottest 100 | 70 70 100 Shots Fired 206 | 18 99 89 Gun 162 | 18 76 68 Cannon 5 | . . 5 Launcher 37 | . 23 14 Special 2 | . . 2 Kinetic 126 | 9 58 59 Thermal 47 | 9 18 20 Explosive 33 | . 23 10 Electromagnetic . | . . . Robot Hit Streak 24 | 3 8 24 Robot Miss Streak 5 | 1 5 2 Penetration Max . | . . . Secondary Targets . | . . . Shots Hit Robots 118 | 11 47 60 Core Hits 71 | 6 41 24 Critical Kills 1 | . . 1 Critical Parts Destroyed . | . . . Critical Strikes 6 | . 2 4 Burn 5 | . 2 3 Destroy 1 | . . 1 Melee Attacks . | . . . Impact . | . . . Slashing . | . . . Piercing . | . . . Sneak Attacks . | . . . Combat Hostiles . | . . . Follow-up Attacks . | . . . Damage Inflicted 3198 | 137 1729 1332 Guns 1146 | 134 468 544 Cannons 67 | . . 67 Explosions 1943 | . 1226 717 Melee . | . . . Ramming 42 | 3 35 4 Kinetic 1071 | 84 355 632 Thermal 350 | 50 113 187 Explosive 1735 | . 1226 509 Electromagnetic . | . . . Impact . | . . . Slashing . | . . . Piercing . | . . . Highest Corruption . | . . . Average Corruption . | . . . Corruption Purged . | . . . Corruption Blocked . | . . . Overload Shots . | . . . Overflow Damage 24 | . 24 . Projectiles . | . . . Explosions 24 | . 24 . Melee . | . . . Knockbacks 2 | . 1 1 Impact 1 | . 1 . Kinetic 1 | . . 1 Secondary . | . . . Self-Inflicted Damage 290 | . 267 23 Shots 6 | . 5 1 Rammed 13 | 3 9 1 Targets Rammed 13 | 3 9 1 Kicked . | . . . Crushed . | . . . Highest Temperature 156 | 81 156 13 Average Temperature 45 | 41 47 13 Received Heat Transfer 675 | . 396 279 Siege Activations . | . . . Martial Activations . | . . . Shielding Activations . | . . . Robots Disrupted . | . . . Combat Hostiles . | . . . Robots Corrupted . | . . . Combat Hostiles . | . . . Parts Fried . | . . . Impact Corruptions . | . . . Robots Melted . | . . . Combat Hostiles . | . . . Parts Melted 1 | . 1 . Heat Transferred 1406 | 148 481 777 Parts Sabotaged . | . . . Parts Stolen . | . . . Parts Stripped . | . . . Power Chain Reactions . | . . . Alert | -11 -10 -10 ------- Run | Yrd Mat Sub Maximum Alert Level 1 | . 1 . Low Security (%) 99 | 100 99 . Level 1 . | . . . Level 2 . | . . . Level 3 . | . . . Level 4 . | . . . Level 5 . | . . . High Security . | . . . Max Security . | . . . Peak Influence 201 | 10 201 . Initial . | . . . Average 81 | 1 87 . Influence Increases 689 | 20 649 20 Destroy 0b10 Robot/C 420 | . 400 20 Destroy 0b10 Robot/NC 50 | 20 30 . Destroy Leader 84 | . 84 . Disable Machine 45 | . 45 . Destroy Structure 90 | . 90 . Influence Decreases 689 | 20 538 131 Entered New Map 54 | . . 54 Time Decay 574 | 20 484 70 Lost Part 61 | . 54 7 Squads Dispatched 6 | . 6 . Investigation 4 | . 4 . Extermination . | . . . Reinforcement 2 | . 2 . Assault . | . . . Garrison . | . . . Intercept . | . . . Searches Triggered . | . . . Construction Impeded . | . . . Haulers Reinforced . | . . . Active Scanning Responses . | . . . Cargo Convoy Interrupts . | . . . Stealth | -11 -10 -10 --------- Run | Yrd Mat Sub Distress Signals 3 | . 3 . Communications Jammed . | . . . Distress Signals . | . . . Times Spotted 40 | . 27 13 Peak Tracking Total 6 | . 6 3 Tactical Retreats 1 | . . 1 Traps | -11 -10 -10 ------- Run | Yrd Mat Sub Traps Triggered 4 | . 3 1 Indirectly . | . . . Trap Hack Attempts . | . . . Triggered . | . . . Disarmed . | . . . Reprogrammed . | . . . Reused . | . . . Traps Extracted . | . . . Installed . | . . . Triggered . | . . . Machines | -11 -10 -10 ---------- Run | Yrd Mat Sub Machines Disabled 4 | . 3 1 Max in Single Turn 2 | . 2 1 Machines Repaired . | . . . Machines Dismantled . | . . . Machines Sabotaged . | . . . Overloaded Fab Kills . | . . . Hacking | -11 -10 -10 --------- Run | Yrd Mat Sub Machines Accessed 2 | . 1 1 Terminals . | . . . Fabricators . | . . . Repair Stations . | . . . Recycling Units 1 | . 1 . Scanalyzers . | . . . Garrison Access . | . . . Total Hacks 5 | . 4 1 Successful 2 | . 1 1 Failed 3 | . 3 . Catastrophic 1 | . 1 . Database Lockouts . | . . . Manual 1 | . 1 . Terminals . | . . . Fabricators . | . . . Repair Stations . | . . . Recycling Units 4 | . 4 . Scanalyzers . | . . . Garrison Access . | . . . Terminal Hacks 1 | . . 1 Proto ID Catalog 1 | . . 1 Fabricator Hacks . | . . . Repair Station Hacks . | . . . Recycling Unit Hacks 1 | . 1 . Report Inventory 1 | . 1 . Scanalyzer . | . . . Garrison Access Hacks . | . . . Unauthorized Hacks . | . . . Terminals . | . . . Fabricators . | . . . Repair Stations . | . . . Recycling Units . | . . . Scanalyzers . | . . . Garrison Access . | . . . Data Cores Recovered . | . . . Used . | . . . Hacking Detections 1 | . 1 . Full Trace Events 1 | . 1 . Feedback Events . | . . . Feedback Blocked . | . . . Robot Schematics Acquired . | . . . Robots Built . | . . . Authchips . | . . . Time . | . . . Total Robot Build Rating . | . . . Part Schematics Acquired . | . . . Parts Built . | . . . Authchips . | . . . Time . | . . . Total Part Build Rating . | . . . Parts Repaired . | . . . Time . | . . . Parts Recycled . | . . . Recycled Matter . | . . . Retrieved Matter . | . . . Retrieved Components . | . . . Parts Scanalyzed . | . . . Part Schematics Acquired . | . . . Parts Damaged . | . . . Bothacking | -11 -10 -10 ------------ Run | Yrd Mat Sub Used RIF Installer . | . . . Robots Hacked . | . . . Non-combat . | . . . Combat . | . . . Robot Hacks Applied . | . . . Relay Couplers Released . | . . . Fabnet Peak Effective % . | . . . Robots Rewired . | . . . Allies Hacked . | . . . Hacks Repelled . | . . . Allies | -11 -10 -10 -------- Run | Yrd Mat Sub Total Allies . | . . . Largest Group . | . . . Highest-Rated Group . | . . . Highest-Rated Ally . | . . . Total Orders . | . . . Ally Attacks . | . . . Total Damage . | . . . Kills . | . . . Allies Corrupted . | . . . Allies Melted . | . . . Intel | -11 -10 -10 ------- Run | Yrd Mat Sub Active Infowar (turns) 1474 | . 1028 446 Structural 1474 | . 1028 446 Robot Analysis Total . | . . . Derelict Logs Recovered 1 | . . 1 Drone Launches . | . . . Drone Recoveries . | . . . Exploration | -11 -10 -10 ------------- Run | Yrd Mat Sub Turns Passed 2949 | 106 1513 1330 Spaces Moved 1555 | 43 577 935 Core 7 | 7 . . Treads 509 | 36 472 1 Legs . | . . . Wheels 1039 | . 105 934 Hover . | . . . Flight . | . . . Fastest Speed 50 | 50 105 105 Average Speed 133 | 146 157 118 Slowest Speed 260 | 160 240 260 Overloaded Moves . | . . . Propulsion Burnouts . | . . . Robots Hopped . | . . . Potential Cave-ins . | . . . Cave-ins Triggered . | . . . Exploration Rate (%) 50 | 4 97 49 Regions Visited 2 Branch Regions 1 Pre-discovered Areas . | . . . Known Exits Taken . | . . . Unknown Exits Taken 2 | 1 1 . Scrap Searched 3 | . . 3 Spaces Dug 5 | . 5 . Terrain Destroyed 203 | . 117 86 Melee . | . . . Projectile . | . . . AOE 203 | . 117 86 Terrain Rammed . | . . . Walls Destroyed . | . . . Machines Disabled . | . . . Actions | -11 -10 -10 --------- Run | Yrd Mat Sub Total 2200 | 63 1075 1062 Wait 409 | . 407 2 Move 1554 | 43 576 935 Hop . | . . . Pick Up 28 | 3 12 13 Fast Attach 14 | 6 4 4 Attach 11 | . 3 8 Detach 2 | . 2 . Swap 13 | . 2 11 Drop 10 | . . 10 Fire 147 | 9 60 78 Melee . | . . . Ram 2 | . 1 1 Kick . | . . . Crush 10 | 2 8 . Escape Stasis . | . . . Rewire . | . . . Trap . | . . . Miscellaneous . | . . . Route ------- -11/Scrapyard -10/Materials (discovered 5 exits: [*Mat x3] / [*Min] / *Sub) -10/Subcaves History --------- Turn | Location | Event 17 | -11/Scrapyard | Discovered new exit (range 16) 107 | -11/Scrapyard | Entered Materials 329 | -10/Materials | Build established: Mutant 377 | -10/Materials | Discovered new exit (range 4) 508 | -10/Materials | Discovered new exit (range 15) 554 | -10/Materials | Discovered new exit (range 6) 963 | -10/Materials | Discovered new exit (range 14) 1516 | -10/Materials | Core integrity fell below 50% 1605 | -10/Materials | Discovered new exit (range 6) 1620 | -10/Materials | Entered Subcaves 1854 | -10/Subcaves | Ambushed by Subdweller buried in earth 1857 | -10/Subcaves | Ambushed by Subdweller buried in earth 2140 | -10/Subcaves | Visited 4L-MR0's lab 2154 | -10/Subcaves | Found Flightbrick 2274 | -10/Subcaves | Shifting Twisted Machinery released Flamer 2285 | -10/Subcaves | Shifting Twisted Machinery released Sub. Power Source 2301 | -10/Subcaves | Learned 2 Materials zone layouts 2346 | -10/Subcaves | A swath of the cavern ceiling suddenly collapsed 2361 | -10/Subcaves | Shifting Twisted Machinery released Sub. Laser 2816 | -10/Subcaves | Core integrity fell below 20% 2822 | -10/Subcaves | Ambushed by Subdweller buried in earth 2950 | -10/Subcaves | Destroyed by 37-O3P(R) with Subdweller Laser Last Messages --------------- 02799_ Acquired 14 matter. 02822_ Sub. Machine Gun shoots sparks and powers down. 02822_ Destroyed Scrap Shield. 02823_ 37-O3P(R): "ARGHSUB!" 02834_ Acquired 5 matter. 02837_ Broken Sub. Machine Gun destroyed. 02839_ Acquired 10 matter. 02841_ AN-DGR(R) destroyed. 02844_ 37-O3P(R) affixes Scrap Shield Fragment to Scrap Shield. 02855_ Acquired 5 matter. 02871_ Hrd. Light Armor Plating destroyed. 02932_ Searching scrap... 02932_ Found Spk. Treads. 02932_ Found Battle Cannon. 02932_ Found 56 Matter. 02933_ Acquired 56 matter. 02936_ Acquired Spk. Treads. 02940_ Acquired Battle Cannon. 02942_ 37-O3P(R) knocked back. 02943_ Acquired 2 matter. Map ----- +----------------------------------------------------+ | ## ##?## ##### ###????????? | | & ## ##?### #### ####???????? | | # ## ### ##??### ##### #####??????? | | #### ### ##????### #"# " #####????? | | ###### ## #########" " "" #####???? | | ##### ##########" "" ###???? | | ##### ## # # # "" "" ##???? | | ##### ## ##???? | | ##### """ ### ###???? | | "" ###### # ## "" " ### #####???? | | """" #################""#### ##### ####????? | | ##### ######??######################## ###??????? | | ##########?????????????############# #####????? | | ????####??????????????????????????### ####????? | | ????????????????????????????###?##### ##????? | | ???????????????????????????######### ##????? | | ???????????????????????????### ### ###????? | | ???????????????????????????## ### # ##????? | | ??????????????????????????### ### && ##????? | | ??????????????????????????### ###& ####????? | | ??????????????????????????## & #####????? | | ??????????????????????????## ####??????? | | ??????????????????????????####### #########?? | | ????????????????????####??######## ########?? | | ????????????????????########???### ###? | | ????????????????????##R @<#???### ###? | | ????????????????????## ## ###### ##? | | ??????????############ ######### ##? | | ????################### "## ### ##### ##? | | ????# ## ## ### ###### ###? | | ?????# #" #### ##### ####? | | ???????# #### #### ###?? | | ???????#### ### #### ##?? | | ??????????# ### #### ###?? | | ??????????# ### ## ##### ####?? | | ??????????# #### ## ###### ###??? | | ?????##???# #### ### ####### ###??? | | ????## #### ### ###### ######## ###?? | | ?#### ## ####### ####### ###?? | | ## ### ###???#### ## ######## ##?? | | # ##?## ##????#### ######## ##?? | | #??### ##??????### ##??### ##?? | | ## ########???????### ##??### ##?? | | # ??# ##??####??## ###?#### ##?? | | ?????## #### ##### ####### ###? | | ????# ## ## #### ####### ###? | | ? ?## ## ##? | | ?## #### ##? | | # ?# ##### ###? | | ?#### #?# ##### #####? | +----------------------------------------------------+ Best States ------------- Heat Dissipation 25 Energy Generation 15 Energy Capacity 200 Matter Stores 298 Matter Capacity 300 Sight Range 16 Terrain Scan Density 10 Armor Coverage 150 Evasion (%) 40 Recoil Reduction 2 Item Schematics ----------------- None Robot Schematics ------------------ None Fabricated ------------ Nothing Repaired ---------- Nothing Alien Tech Used ----------------- None Achievements -------------- None Challenges ------------ None Game ------ Seed XenonLobotomyTendrils Manual? 0 Play Time 00:15:04 Cumulative 146.0 hours Start 2025.07.07 @ 22:43:57 End 2025.07.07 @ 22:57:52 Sessions 1 Manual Loads 0 Difficulty Rogue Special Mode None Game No. 159 Rogue 159 Adventurer 0 Explorer 0 Win Type - Total 3 Types 1/0/0/1/0/0/0/0/0/1 Lore% 64 Gallery% 60 Achievement% 53 Wizard Run 0 Options --------- Layout 1 ASCII 0 Keyboard 1 Movement Numpad Keybinds 0 Fullscreen 1 Font 32/SmallcapsGlow Map View 77x35 Zoom Use 0% Tactical HUD 1 Map Filters NONE Filters NONE Steam 1 RUN: cd467686-651b-44a6-aaa3-9ed66a466410